bitfinex-derivatives/quotes_BTCF0:USTF0_20250809
["timestamp","ask_amount","ask_price","bid_price","bid_amount"]
[1754763371056,1.3591487,116760.0,116750.0,0.2066079]
[1754763371266,1.692015,116760.0,116750.0,0.2066079]
[1754763371957,0.7622963,116760.0,116750.0,0.5394742]
[1754763372163,1.2762869,116760.0,116750.0,0.9002742]
[1754763373661,1.2762869,116760.0,116750.0,0.5674079]
[1754763373960,1.6091532,116760.0,116750.0,0.5394742]
[1754763374458,1.6091532,116760.0,116750.0,0.2066079]
[1754763374760,1.2762869,116760.0,116750.0,0.5394742]
[1754763375059,1.6091532,116760.0,116750.0,0.5394742]
[1754763375462,1.6091532,116760.0,116750.0,0.64740951]
[1754763376062,1.6091532,116760.0,116750.0,1.00820951]
[1754763379157,1.6091532,116760.0,116750.0,0.64740951]
[1754763379962,1.6091532,116760.0,116750.0,0.5394742]
[1754763380868,1.6091532,116760.0,116750.0,0.69369423]
[1754763383069,1.6091532,116760.0,116750.0,0.36082793]
[1754763383262,1.6091532,116760.0,116750.0,0.69369423]
[1754763383463,1.6091532,116760.0,116750.0,0.36082793]
[1754763383663,1.6089232,116760.0,116750.0,0.69189423]
[1754763383967,1.6089232,116760.0,116750.0,0.35902793]
[1754763384167,1.6089232,116760.0,116750.0,0.2048079]
[1754763384366,1.6089232,116760.0,116750.0,0.5376742]
[1754763384673,1.6089232,116760.0,116750.0,0.2048079]
[1754763385566,0.9431906,116760.0,116750.0,0.2048079]
[1754763385869,1.6089232,116760.0,116750.0,0.2048079]
[1754763386771,1.6089232,116760.0,116750.0,0.5376742]
[1754763387273,1.6089232,116760.0,116750.0,0.69189423]
[1754763388065,1.6089232,116760.0,116750.0,0.35902793]
[1754763388270,1.6089232,116760.0,116750.0,0.69189423]
[1754763388570,0.9431906,116760.0,116750.0,0.69189423]
[1754763388771,1.6089232,116760.0,116750.0,0.69189423]
[1754763389171,0.9431906,116760.0,116750.0,0.69189423]
[1754763389369,1.2534469,116760.0,116750.0,0.64289423]
[1754763389567,1.2760569,116760.0,116750.0,0.69010423]
[1754763389767,1.2760569,116760.0,116750.0,0.8966842]
[1754763390167,1.2760569,116760.0,116750.0,1.00465267]
[1754763393076,1.2760569,116760.0,116750.0,0.8966842]
[1754763393973,1.2760569,116760.0,116750.0,0.5358842]
[1754763394374,0.9431906,116760.0,116750.0,0.5358842]
[1754763394573,1.2760569,116760.0,116750.0,0.8966842]
[1754763395478,1.2760569,116760.0,116750.0,1.05090423]
[1754763396075,1.2760569,116760.0,116750.0,0.69010423]
[1754763403685,1.2760569,116760.0,116750.0,0.35723793]
[1754763403874,1.2760569,116760.0,116750.0,0.69010423]
[1754763404181,1.2760569,116760.0,116750.0,1.05090423]
[1754763404682,0.9431906,116760.0,116750.0,0.69010423]
[1754763404881,1.2760569,116760.0,116750.0,0.69010423]
[1754763405684,1.6089232,116760.0,116750.0,0.69010423]
[1754763407683,1.2760569,116760.0,116750.0,0.69010423]
[1754763408875,1.2760569,116760.0,116750.0,0.5358842]
[1754763410587,1.1904263,116760.0,116750.0,0.69010423]
[1754763410784,1.1904263,116760.0,116750.0,1.05090423]
[1754763413997,1.1904263,116760.0,116750.0,0.69010423]
[1754763414192,1.1904263,116760.0,116750.0,1.05090423]
[1754763415399,1.1904263,116760.0,116750.0,0.8966842]
[1754763418203,1.2760566,116760.0,116750.0,0.8966842]
[1754763421105,1.2760566,116760.0,116750.0,0.5358842]
[1754763421400,1.2760566,116760.0,116750.0,0.8966842]
[1754763421603,1.1904263,116760.0,116750.0,0.8966842]
[1754763422904,1.1904263,116760.0,116750.0,1.05090423]
[1754763424406,1.1904263,116760.0,116750.0,0.69010423]
[1754763424605,1.1904263,116760.0,116750.0,1.05090423]
[1754763426099,1.1904263,116760.0,116750.0,0.69010423]
[1754763426306,1.1904263,116760.0,116750.0,1.05090423]
[1754763427406,1.2760567,116760.0,116750.0,1.05090423]
[1754763428408,1.2760567,116760.0,116750.0,0.71803793]
[1754763428707,1.608923,116760.0,116750.0,0.71803793]
[1754763431405,0.9431904,116760.0,116750.0,0.71803793]
[1754763431802,1.608923,116760.0,116750.0,0.71803793]
[1754763434110,1.608923,116760.0,116750.0,0.35723793]
[1754763434309,1.608923,116760.0,116750.0,0.71803793]
[1754763435606,1.608923,116760.0,116750.0,0.5638179]
[1754763440322,0.9431904,116760.0,116750.0,0.5638179]
[1754763440611,1.608923,116760.0,116750.0,0.5166079]
[1754763440917,1.608923,116760.0,116750.0,0.5513379]
[1754763441317,1.608923,116760.0,116750.0,0.5658379]
[1754763442213,1.608923,116760.0,116750.0,0.8987042]
[1754763442918,0.9431904,116760.0,116750.0,0.8987042]
[1754763443117,1.608923,116760.0,116750.0,0.8987042]
[1754763446615,1.608923,116760.0,116750.0,0.5658379]
[1754763447113,1.608923,116760.0,116750.0,0.8987042]
[1754763447417,1.608923,116760.0,116750.0,0.5379042]
[1754763447719,1.608923,116760.0,116750.0,0.8987042]
[1754763448719,1.608923,116760.0,116750.0,0.5658379]
[1754763449017,1.608923,116760.0,116750.0,0.8987042]
[1754763449718,1.608923,116760.0,116750.0,0.5379042]
[1754763449920,1.608923,116760.0,116750.0,0.8987042]
[1754763451018,1.608923,116760.0,116750.0,1.0529724]
[1754763452207,1.608923,116760.0,116750.0,0.3100761]
[1754763452407,1.608923,116760.0,116750.0,0.3006761]
[1754763452612,1.608923,116760.0,116750.0,0.2854261]
[1754763453418,0.9431904,116760.0,116750.0,0.2854261]
[1754763453620,1.608923,116760.0,116750.0,0.2854261]
[1754763454118,1.608923,116760.0,116750.0,0.3201561]
[1754763455220,1.608923,116760.0,116750.0,0.1658879]
[1754763455720,1.608923,116760.0,116750.0,0.1820379]
[1754763458616,0.9431904,116760.0,116750.0,0.1820379]
[1754763458817,1.608923,116760.0,116750.0,0.1820379]
[1754763460724,1.608923,116760.0,116750.0,0.29001306]
[1754763463112,0.9431904,116760.0,116750.0,0.29001306]
[1754763463315,1.608923,116760.0,116750.0,0.29001306]
[1754763464425,1.608923,116760.0,116750.0,0.1820379]
[1754763465125,0.9431904,116760.0,116750.0,0.1820379]
[1754763465433,1.608923,116760.0,116750.0,0.2056079]
[1754763466422,1.608923,116760.0,116750.0,0.3598761]
[1754763466619,0.9431904,116760.0,116750.0,0.3598761]
[1754763466826,1.608923,116760.0,116750.0,0.3598761]
[1754763471232,1.969723,116760.0,116750.0,0.3598761]
[1754763472033,1.608923,116760.0,116750.0,0.3598761]
[1754763472531,1.969723,116760.0,116750.0,0.3598761]
[1754763473535,1.3039904,116760.0,116750.0,0.3598761]
[1754763473832,1.608923,116760.0,116750.0,0.3598761]
[1754763479648,0.9431904,116760.0,116750.0,0.3598761]
[1754763479832,1.608923,116760.0,116750.0,0.3598761]
[1754763484737,0.9431904,116760.0,116750.0,0.3598761]
[1754763484938,1.608923,116760.0,116750.0,0.6927424]
[1754763486443,0.9431904,116760.0,116750.0,0.6927424]
[1754763486740,1.608923,116760.0,116750.0,0.6927424]
[1754763490748,1.608923,116760.0,116750.0,0.6928224]
[1754763492753,1.608923,116760.0,116750.0,0.3599561]
[1754763492961,1.608923,116760.0,116750.0,0.6928224]
[1754763496156,1.608923,116760.0,116750.0,0.3599561]
[1754763496453,1.608923,116760.0,116750.0,0.6928224]
[1754763496953,0.9431904,116760.0,116750.0,0.6928224]
[1754763497155,1.608923,116760.0,116750.0,0.6928224]
[1754763498658,1.608923,116760.0,116750.0,0.3599561]
[1754763500157,1.608923,116760.0,116750.0,0.6928224]
[1754763500557,1.5232926,116760.0,116750.0,0.6928224]
[1754763500858,1.6089229,116760.0,116750.0,0.6928224]
[1754763504053,1.6089229,116760.0,116750.0,0.3599561]
[1754763504254,1.6089229,116760.0,116750.0,0.6928224]
[1754763504255,0.9431903,116760.0,116750.0,0.6928224]
[1754763504554,1.6089229,116760.0,116750.0,0.6928224]
[1754763505162,1.6089229,116760.0,116750.0,0.5385542]
[1754763507864,1.5232926,116760.0,116750.0,0.5385542]
[1754763508067,1.6089229,116760.0,116750.0,0.5385542]
[1754763508460,0.02604,116760.0,116750.0,0.5248542]
[1754763508666,1.1610563,116760.0,116750.0,0.8993542]
[1754763508860,0.83138,116760.0,116750.0,0.8993542]
[1754763509165,0.83138,116760.0,116750.0,0.8975542]
[1754763509166,1.2740566,116760.0,116750.0,0.8975542]
[1754763509565,1.2740566,116760.0,116750.0,0.5646879]
[1754763509566,1.1884263,116760.0,116750.0,0.5646879]
[1754763509766,1.2740566,116760.0,116750.0,0.8975542]
[1754763510265,1.6069229,116760.0,116750.0,0.8975542]
[1754763510464,0.9411903,116760.0,116750.0,0.8975542]
[1754763510765,1.5212926,116760.0,116750.0,0.8975542]
[1754763511169,0.85556,116760.0,116750.0,0.8975542]
[1754763511369,1.1884263,116760.0,116750.0,0.8975542]
[1754763512673,1.2740566,116760.0,116750.0,0.8975542]
[1754763514773,1.2740566,116760.0,116750.0,0.5646879]
[1754763514962,1.6069229,116760.0,116750.0,0.5646879]
[1754763515167,1.6069229,116760.0,116750.0,0.8975542]
[1754763519071,1.2740566,116760.0,116750.0,0.5646879]
[1754763519577,0.0449,116760.0,116750.0,0.5646879]
[1754763519771,1.1649663,116760.0,116750.0,0.5646879]
[1754763519971,1.1649663,116760.0,116750.0,0.8975542]
[1754763520166,1.1617763,116760.0,116750.0,0.8975542]
[1754763520472,0.3338663,116760.0,116750.0,0.8975542]
[1754763520669,0.7888,116760.0,116750.0,1.2304205]
[1754763521377,0.7888,116760.0,116750.0,1.43090098]
[1754763521671,0.7538,116760.0,116750.0,1.79170098]
[1754763522068,0.6938,116760.0,116750.0,1.79270098]
[1754763522270,0.24746186,116760.0,116750.0,1.79270098]
[1754763522670,0.24746186,116760.0,116750.0,1.5922205]
[1754763523878,1.5887763,116780.0,116770.0,0.200883]
[1754763524079,2.3764163,116780.0,116770.0,1.04858247]
[1754763524377,2.04355,116780.0,116770.0,1.04858247]
[1754763525078,2.3764163,116780.0,116770.0,1.04858247]
[1754763525475,2.462032,116780.0,116770.0,1.04858247]
[1754763525675,2.463032,116780.0,116770.0,1.04858247]
[1754763526378,2.463032,116780.0,116770.0,0.71571617]
[1754763526570,2.463032,116780.0,116770.0,1.04858247]
[1754763528481,2.1301657,116780.0,116770.0,1.04858247]
[1754763528669,2.463032,116780.0,116770.0,1.04858247]
[1754763528873,2.3774163,116780.0,116770.0,1.04858247]
[1754763531186,2.3774163,116780.0,116770.0,0.8945493]
[1754763532880,2.3774163,116780.0,116770.0,1.04858247]
[1754763534088,2.04455,116780.0,116770.0,1.04858247]
[1754763535190,2.04455,116780.0,116770.0,0.8945493]
[1754763535687,2.3774163,116780.0,116770.0,0.8945493]
[1754763536988,2.3774163,116780.0,116770.0,0.561683]
[1754763537190,2.3774163,116780.0,116770.0,0.8945493]
[1754763537989,2.04455,116780.0,116770.0,0.8945493]
[1754763538983,2.04455,116780.0,116770.0,0.561683]
[1754763539483,2.04455,116780.0,116770.0,0.8945493]
[1754763540084,2.04455,116780.0,116770.0,1.04858247]
[1754763542594,1.25691,116780.0,116770.0,1.04858247]
[1754763542794,2.7949382,116780.0,116770.0,0.60045617]
[1754763543092,2.7949382,116780.0,116770.0,0.23965617]
[1754763543288,2.7949382,116780.0,116770.0,0.085623]
[1754763544993,2.7949382,116780.0,116770.0,0.19337748]
[1754763549194,2.7949382,116780.0,116770.0,0.52624378]
[1754763549598,2.7949382,116780.0,116770.0,0.19337748]
[1754763551394,2.7949382,116780.0,116770.0,0.085623]
[1754763556403,0.1338729,116770.0,116760.0,0.85733927]
[1754763556592,0.5391692,116770.0,116760.0,0.49653927]
[1754763556998,0.5391692,116770.0,116760.0,0.6753724]
[1754763557409,0.5391692,116770.0,116760.0,0.6763724]
[1754763558109,0.5391692,116770.0,116760.0,0.6773724]
[1754763558301,0.5391692,116770.0,116760.0,0.3445061]
[1754763558502,0.5391692,116770.0,116760.0,0.6773724]
[1754763560414,0.5391692,116770.0,116760.0,0.3445061]
[1754763560603,0.5391692,116770.0,116760.0,0.6773724]
[1754763561913,0.5391692,116770.0,116760.0,0.84065557]
[1754763562212,0.5391692,116770.0,116760.0,0.55459927]
[1754763562412,0.5391692,116770.0,116760.0,0.41291097]
[1754763563216,0.8999692,116770.0,116760.0,0.41291097]
[1754763565309,0.8999692,116770.0,116760.0,0.2588778]
[1754763566515,0.5391692,116770.0,116760.0,0.2588778]
[1754763566916,0.8999692,116770.0,116760.0,0.2588778]
[1754763570118,0.8999692,116770.0,116760.0,0.36671756]
[1754763571220,0.5671029,116770.0,116760.0,0.36671756]
[1754763571520,0.8999692,116770.0,116760.0,0.36671756]
[1754763572719,0.8999692,116770.0,116760.0,0.37596756]
[1754763572916,0.8999692,116770.0,116760.0,0.40885756]
[1754763573424,0.8999692,116770.0,116760.0,0.43800756]
[1754763573819,0.8999692,116770.0,116760.0,0.46188756]
[1754763574016,0.8999692,116770.0,116760.0,0.48308756]
[1754763575820,0.8999692,116770.0,116760.0,0.3752478]
[1754763578624,0.8999692,116770.0,116760.0,0.48308948]
[1754763579126,0.5391692,116770.0,116760.0,0.3752478]
[1754763579828,0.8999692,116770.0,116760.0,0.3752478]
[1754763580030,0.5391692,116770.0,116760.0,0.3752478]
[1754763581232,0.8999692,116770.0,116760.0,0.3752478]
[1754763582430,0.5391692,116770.0,116760.0,0.3752478]
[1754763583031,0.2063029,116770.0,116760.0,0.3752478]
[1754763583231,0.5391692,116770.0,116760.0,0.7081141]
[1754763583734,0.5391692,116770.0,116760.0,0.86214727]
[1754763584031,0.5391692,116770.0,116760.0,1.22294727]
[1754763584630,0.5391692,116770.0,116760.0,1.0689141]
[1754763585629,0.1338729,116770.0,116760.0,1.0689141]
[1754763585834,0.9903829,116770.0,116760.0,1.0689141]
[1754763586033,1.3232492,116770.0,116760.0,1.0689141]
[1754763587134,1.3232492,116770.0,116760.0,1.33084907]
[1754763587730,1.3232492,116770.0,116760.0,1.1768159]
[1754763588737,0.9903829,116770.0,116760.0,1.1768159]
[1754763588931,1.3232492,116770.0,116760.0,1.1768159]
[1754763589732,1.3232492,116770.0,116760.0,0.8439496]
[1754763589936,1.3232492,116770.0,116760.0,1.1768159]
[1754763591439,1.3232492,116770.0,116760.0,1.0689141]
[1754763592739,1.3232492,116770.0,116760.0,0.7360478]
[1754763592932,1.3232492,116770.0,116760.0,1.0689141]
[1754763593332,0.9903829,116770.0,116760.0,1.0689141]
[1754763593532,0.9903829,116770.0,116760.0,1.1768159]
[1754763593533,1.3232492,116770.0,116760.0,1.1768159]
[1754763595137,1.3232492,116770.0,116760.0,1.0689141]
[1754763597138,1.3232492,116770.0,116760.0,1.1768159]
[1754763599641,1.3232492,116770.0,116760.0,1.0689141]
[1754763600632,1.3232492,116770.0,116760.0,0.7360478]
[1754763600835,1.3232492,116770.0,116760.0,1.0689141]
[1754763601037,1.3232492,116770.0,116760.0,1.17683811]
[1754763601736,0.9903829,116770.0,116760.0,1.17683811]
[1754763601941,1.3232492,116770.0,116760.0,1.17683811]
[1754763604847,0.9903829,116770.0,116760.0,1.17683811]
[1754763605035,1.3232492,116770.0,116760.0,1.0689141]
[1754763606439,1.3232492,116770.0,116760.0,1.22294727]
[1754763607249,1.3232492,116770.0,116760.0,1.0689141]
[1754763608250,0.9903829,116770.0,116760.0,1.0689141]
[1754763608444,1.3232492,116770.0,116760.0,1.0689141]
[1754763610351,0.9903829,116770.0,116760.0,1.0689141]
[1754763610550,1.3232492,116770.0,116760.0,1.0689141]
[1754763611152,1.3232492,116770.0,116760.0,0.7081141]
[1754763611353,1.3232492,116770.0,116760.0,1.22294727]
[1754763611654,1.3232492,116770.0,116760.0,0.86214727]
[1754763611855,1.3232492,116770.0,116760.0,1.22294727]
[1754763614054,1.3232492,116770.0,116760.0,0.86214727]
[1754763614255,1.3232492,116770.0,116760.0,1.22294727]
[1754763616055,0.9903829,116770.0,116760.0,1.22294727]
[1754763616445,1.3232492,116770.0,116760.0,1.22294727]
[1754763616650,0.9903829,116770.0,116760.0,1.22294727]
[1754763616859,1.3232492,116770.0,116760.0,1.22294727]
[1754763617650,1.3232492,116770.0,116760.0,1.0689141]
[1754763620863,0.9903829,116770.0,116760.0,1.0689141]
[1754763621057,1.3232492,116770.0,116760.0,1.22314567]
[1754763621758,1.3232492,116770.0,116760.0,0.89027937]
[1754763621959,1.3232492,116770.0,116760.0,1.22314567]
[1754763622360,1.2036892,116770.0,116760.0,1.22314567]
[1754763622557,1.2268092,116770.0,116760.0,1.22314567]
[1754763622761,1.2739992,116770.0,116760.0,1.22314567]
[1754763622962,1.2739992,116770.0,116760.0,0.89027937]
[1754763623155,1.2739992,116770.0,116760.0,1.22314567]
[1754763624154,0.9397129,116770.0,116760.0,1.55601197]
[1754763624360,0.9726129,116770.0,116760.0,1.55601197]
[1754763624657,0.9869029,116770.0,116760.0,1.55601197]
[1754763625758,0.7771384,116780.0,116770.0,0.0856229]
[1754763625959,1.5764684,116780.0,116770.0,0.8953592]
[1754763626158,1.4908457,116780.0,116770.0,0.8953592]
[1754763626363,1.4908457,116780.0,116770.0,1.00331132]
[1754763626568,0.9724456,116780.0,116770.0,0.8953592]
[1754763626864,1.3206019,116780.0,116770.0,0.8953592]
[1754763627267,0.9877356,116780.0,116770.0,0.8953592]
[1754763627564,0.90212,116780.0,116770.0,0.5624929]
[1754763627965,0.90212,116780.0,116770.0,0.8953592]
[1754763628162,1.2349863,116780.0,116770.0,0.8953592]
[1754763628362,0.90212,116780.0,116770.0,0.8953592]
[1754763629662,0.82244,116780.0,116770.0,1.00321011]
[1754763629866,0.78604,116780.0,116770.0,0.67034381]
[1754763630061,0.80916,116780.0,116770.0,0.8953592]
[1754763630267,0.85742,116780.0,116770.0,0.5624929]
[1754763630469,0.85742,116780.0,116770.0,0.8953592]
[1754763631469,0.85742,116780.0,116770.0,1.2282255]
[1754763631769,0.85742,116780.0,116770.0,0.8953592]
[1754763632571,0.85742,116780.0,116770.0,1.2282255]
[1754763632871,0.88783,116780.0,116770.0,0.76297338]
[1754763633171,0.90212,116780.0,116770.0,1.09583968]
[1754763633765,0.83181,116780.0,116770.0,1.42870598]
[1754763633967,0.82244,116780.0,116770.0,1.42870598]
[1754763634162,0.82244,116780.0,116770.0,1.2282255]
[1754763634567,0.84556,116780.0,116770.0,1.2282255]
[1754763634969,0.84556,116780.0,116770.0,1.3821508]
[1754763635768,0.87988,116780.0,116770.0,1.3821508]
[1754763635974,0.90403,116780.0,116770.0,0.7164182]
[1754763636169,0.90403,116780.0,116770.0,1.3821508]
[1754763638275,0.90403,116780.0,116770.0,0.7164182]
[1754763638468,0.90403,116780.0,116770.0,1.3821508]
[1754763640878,0.90403,116780.0,116770.0,0.7164182]
[1754763641171,1.2368963,116780.0,116770.0,1.0492845]
[1754763641371,0.90403,116780.0,116770.0,1.0492845]
[1754763642278,0.90403,116780.0,116770.0,0.8953592]
[1754763642877,0.90403,116780.0,116770.0,0.5624929]
[1754763643079,0.90403,116780.0,116770.0,0.8953592]
[1754763643876,0.90403,116780.0,116770.0,1.0492845]
[1754763644675,0.90403,116780.0,116770.0,0.8953592]
[1754763646582,1.3225118,116780.0,116770.0,0.8953592]
[1754763646978,1.2368963,116780.0,116770.0,0.8953592]
[1754763647982,0.90403,116780.0,116770.0,0.8953592]
[1754763652289,0.90403,116780.0,116770.0,1.09583968]
[1754763654287,0.90403,116780.0,116770.0,0.76297338]
[1754763654584,0.90403,116780.0,116770.0,1.09583968]
[1754763662192,0.90403,116780.0,116770.0,0.8953592]
[1754763662391,1.3225118,116780.0,116770.0,0.4920629]
[1754763662592,1.3225118,116780.0,116770.0,0.8586592]
[1754763662793,1.3225118,116780.0,116770.0,0.8730292]
[1754763663590,1.3225118,116780.0,116770.0,0.8970692]
[1754763665592,1.6553781,116780.0,116770.0,0.4710029]
[1754763665795,1.6553781,116780.0,116770.0,0.93344251]
[1754763666000,1.3225118,116780.0,116770.0,0.93344251]
[1754763666498,1.6553781,116780.0,116770.0,0.93344251]
[1754763666893,1.3225118,116780.0,116770.0,0.93344251]
[1754763668200,1.3225118,116780.0,116770.0,0.97691251]
[1754763668999,1.3225118,116780.0,116770.0,0.99167251]
[1754763669298,1.3225118,116780.0,116770.0,1.00710251]
[1754763670298,1.3225118,116780.0,116770.0,1.03025251]
[1754763671393,1.3225118,116780.0,116770.0,0.8986492]
[1754763673198,1.3225118,116780.0,116770.0,0.5657829]
[1754763673398,1.3225118,116780.0,116770.0,0.8986492]
[1754763677997,0.9896455,116780.0,116770.0,0.8986492]
[1754763678199,1.3225118,116780.0,116770.0,0.8986492]
[1754763681403,0.9896455,116780.0,116770.0,0.8986492]
[1754763681601,1.3225118,116780.0,116770.0,0.8986492]
[1754763683108,1.3225118,116780.0,116770.0,0.5378492]
[1754763685008,1.3225118,116780.0,116770.0,0.69199318]
[1754763685508,0.9896455,116780.0,116770.0,0.69199318]
[1754763685806,1.3225118,116780.0,116770.0,0.69199318]
[1754763687011,1.3225118,116780.0,116770.0,1.05279318]
[1754763687212,1.3225118,116780.0,116770.0,0.69199318]
[1754763687908,0.4518563,116780.0,116770.0,1.05279318]
[1754763688213,1.2414963,116780.0,116770.0,1.05279318]
[1754763689915,0.4518563,116780.0,116770.0,1.05279318]
[1754763690116,1.2416563,116780.0,116770.0,1.05279318]
[1754763691113,0.4518563,116780.0,116770.0,1.05279318]
[1754763691315,1.2416563,116780.0,116770.0,1.05279318]
[1754763691815,0.90879,116780.0,116770.0,0.71992688]
[1754763692015,1.2416563,116780.0,116770.0,1.05279318]
[1754763692417,1.2403863,116780.0,116770.0,1.05279318]
[1754763695023,1.07844211,116780.0,116770.0,1.05279318]
[1754763695219,0.11775,116780.0,116770.0,1.05279318]
[1754763695421,0.7082911,116800.0,116790.0,0.0856082]
[1754763695617,1.7513504,116800.0,116790.0,0.1568682]
[1754763695824,1.7513504,116800.0,116790.0,0.2027982]
[1754763696625,1.7533504,116800.0,116790.0,0.2027982]
[1754763696819,1.7563504,116800.0,116790.0,0.2027982]
[1754763697210,1.7563504,116800.0,116790.0,0.1706882]
[1754763697415,1.6707435,116800.0,116790.0,0.2027982]
[1754763698715,0.8749435,116800.0,116790.0,0.2027982]
[1754763698920,1.6711835,116800.0,116790.0,0.2027982]
[1754763699522,1.6711835,116800.0,116790.0,0.35698486]
[1754763700225,1.6711835,116800.0,116790.0,0.36547365]
[1754763700525,0.8749435,116800.0,116790.0,0.21128699]
[1754763700713,1.6711435,116800.0,116790.0,0.21128699]
[1754763700916,1.6711435,116800.0,116790.0,0.57208699]
[1754763701122,1.6711435,116800.0,116790.0,0.72627365]
[1754763701925,1.6711435,116800.0,116790.0,0.36547365]
[1754763702829,1.6711435,116800.0,116790.0,0.21128699]
[1754763705128,1.6711435,116800.0,116790.0,0.31916641]
[1754763705329,1.6711435,116800.0,116790.0,0.57208699]
[1754763705827,1.0054109,116800.0,116790.0,0.57208699]
[1754763706027,1.6711435,116800.0,116790.0,0.57208699]
[1754763706231,1.3382772,116800.0,116790.0,0.90495329]
[1754763706428,1.6711435,116800.0,116790.0,0.57208699]
[1754763706827,0.8749435,116800.0,116790.0,0.57208699]
[1754763707032,1.6711835,116800.0,116790.0,0.57208699]
[1754763710533,1.6711835,116800.0,116790.0,0.90495329]
[1754763710735,1.0054509,116800.0,116790.0,0.90495329]
[1754763711034,1.3383172,116800.0,116790.0,0.90495329]
[1754763711534,1.0054509,116800.0,116790.0,0.57208699]
[1754763711834,1.6711835,116800.0,116790.0,0.90495329]
[1754763713735,1.6711835,116800.0,116790.0,0.54415329]
[1754763714033,1.6711835,116800.0,116790.0,0.90495329]
[1754763714832,1.0054509,116800.0,116790.0,0.90495329]
[1754763715336,1.3383172,116800.0,116790.0,0.90495329]
[1754763715529,1.6711835,116800.0,116790.0,0.90495329]
[1754763717243,1.0054509,116800.0,116790.0,0.90495329]
[1754763717444,1.6711835,116800.0,116790.0,0.90495329]
[1754763721750,1.6701835,116800.0,116790.0,0.90495329]
[1754763721938,1.6701835,116800.0,116790.0,0.54415329]
[1754763722139,1.6671835,116800.0,116790.0,0.90495329]
[1754763722446,1.6691835,116800.0,116790.0,0.90495329]
[1754763722639,1.6691835,116800.0,116790.0,0.57208699]
[1754763722840,1.6691835,116800.0,116790.0,0.90495329]
[1754763723650,1.6691835,116800.0,116790.0,0.67999366]
[1754763725147,1.6691835,116800.0,116790.0,0.57208699]
[1754763730844,1.6691835,116800.0,116790.0,0.90495329]
[1754763731949,1.0034509,116800.0,116790.0,0.90495329]
[1754763732147,1.6691835,116800.0,116790.0,0.90495329]
[1754763733150,1.6691835,116800.0,116790.0,0.54415329]
[1754763733347,1.6691835,116800.0,116790.0,0.90495329]
[1754763734349,1.6657534,116800.0,116790.0,0.46393699]
[1754763735050,1.6657534,116800.0,116790.0,0.48663699]
[1754763738944,1.6657534,116800.0,116790.0,0.64082365]
[1754763739144,0.8730734,116800.0,116790.0,0.64082365]
[1754763739346,1.6655934,116800.0,116790.0,1.05940995]
[1754763740047,1.6655934,116800.0,116790.0,0.69860995]
[1754763740548,1.6655934,116800.0,116790.0,0.21155699]
[1754763742053,0.9998608,116800.0,116790.0,0.21155699]
[1754763742347,2.0263934,116800.0,116790.0,0.21155699]
[1754763742547,1.6655934,116800.0,116790.0,0.21155699]
[1754763745250,2.0263934,116800.0,116790.0,0.21155699]
[1754763745552,1.6655934,116800.0,116790.0,0.21155699]
[1754763746953,1.6655934,116800.0,116790.0,0.36574365]
[1754763749351,1.6655934,116800.0,116790.0,0.21155699]
[1754763749953,1.6655934,116800.0,116790.0,0.54442329]
[1754763750147,1.6655934,116800.0,116790.0,0.36574365]
[1754763753457,1.6655934,116800.0,116790.0,0.21155699]
[1754763756556,1.6655934,116800.0,116790.0,0.36574365]
[1754763757354,1.6655934,116800.0,116790.0,0.21155699]
[1754763757656,2.0263934,116800.0,116790.0,0.21155699]
[1754763758658,1.6655934,116800.0,116790.0,0.21155699]
[1754763761357,2.0263934,116800.0,116790.0,0.21155699]
[1754763762165,1.2338734,116800.0,116790.0,0.21155699]
[1754763762367,1.6649934,116800.0,116790.0,0.21155699]
[1754763763566,1.6649934,116800.0,116790.0,0.31949305]
[1754763763766,2.0257934,116800.0,116790.0,0.31949305]
[1754763764766,1.6649934,116800.0,116790.0,0.31949305]
[1754763765066,2.0257934,116800.0,116790.0,0.31949305]
[1754763765266,2.0257934,116800.0,116790.0,0.21155699]
[1754763765465,1.6649934,116800.0,116790.0,0.21155699]
[1754763765962,2.0257934,116800.0,116790.0,0.21155699]
[1754763769064,2.0257934,116800.0,116790.0,0.54442329]
[1754763769669,1.6649934,116800.0,116790.0,0.54442329]
[1754763769974,1.6644334,116800.0,116790.0,0.54442329]
[1754763770659,1.3315671,116800.0,116790.0,0.54442329]
[1754763770859,1.6644334,116800.0,116790.0,0.54442329]
[1754763774974,1.6644334,116800.0,116790.0,0.21155699]
[1754763775176,1.6644334,116800.0,116790.0,0.54442329]
[1754763775562,1.6644334,116800.0,116790.0,0.65236623]
[1754763776575,0.9987008,116800.0,116790.0,0.65236623]
[1754763776879,1.6644334,116800.0,116790.0,0.65236623]
[1754763777776,1.6644334,116800.0,116790.0,0.31949993]
[1754763777971,1.6644334,116800.0,116790.0,0.65236623]
[1754763780279,1.6644334,116800.0,116790.0,0.31949993]
[1754763780478,2.0252334,116800.0,116790.0,0.31949993]
[1754763780777,1.6644334,116800.0,116790.0,0.31949993]
[1754763783279,2.0252334,116800.0,116790.0,0.31949993]
[1754763783881,1.6644334,116800.0,116790.0,0.65236623]
[1754763784080,2.0252334,116800.0,116790.0,0.65236623]
[1754763785383,1.6644334,116800.0,116790.0,0.54442329]
[1754763785883,1.6644334,116800.0,116790.0,0.21155699]
[1754763786081,2.0252334,116800.0,116790.0,0.54442329]
[1754763786274,1.6644334,116800.0,116790.0,0.54442329]
[1754763787182,1.6644334,116800.0,116790.0,0.69860995]
[1754763788385,2.0252334,116800.0,116790.0,0.69860995]
[1754763788885,2.0252334,116800.0,116790.0,0.54442329]
[1754763789485,1.6644334,116800.0,116790.0,0.54442329]
[1754763789686,1.6644334,116800.0,116790.0,0.36574365]
[1754763791187,2.0252334,116800.0,116790.0,0.36574365]
[1754763792086,1.6644334,116800.0,116790.0,0.21155699]
[1754763793194,2.0252334,116800.0,116790.0,0.21155699]
[1754763793788,1.6644334,116800.0,116790.0,0.21155699]
[1754763795287,0.9987008,116800.0,116790.0,0.21155699]
[1754763795496,1.6644334,116800.0,116790.0,0.21155699]
[1754763797805,0.9987008,116800.0,116790.0,0.21155699]
[1754763798200,1.6644334,116800.0,116790.0,0.21155699]
[1754763798400,1.2459663,116800.0,116790.0,0.54447329]
[1754763798597,1.5788326,116800.0,116790.0,0.54447329]
[1754763799305,1.2459663,116800.0,116790.0,0.54447329]
[1754763800200,1.2459663,116800.0,116790.0,0.90527329]
[1754763800804,1.2459663,116800.0,116790.0,0.54447329]
[1754763800999,1.2459663,116800.0,116790.0,0.90527329]
[1754763804717,0.9131,116800.0,116790.0,0.90527329]
[1754763804909,1.2459663,116800.0,116790.0,0.90527329]
[1754763807613,0.9131,116800.0,116790.0,0.90527329]
[1754763807913,1.2459663,116800.0,116790.0,0.90527329]
[1754763809913,1.2426863,116800.0,116790.0,0.90527329]
[1754763810712,0.90982,116800.0,116790.0,0.90527329]
[1754763810915,1.2426863,116800.0,116790.0,0.90527329]
[1754763811615,1.2426863,116800.0,116790.0,0.57240699]
[1754763811916,1.2426863,116800.0,116790.0,0.90527329]
[1754763812211,1.2052563,116800.0,116790.0,0.83477329]
[1754763812412,1.6616732,116800.0,116790.0,0.21160699]